fUSD/lending_fUSD_20250120
["ID","MTS","AMOUNT","RATE_DAILY","PERIOD"]
[349698783,1737382249998,-500.0,0.00020073,2]
[349698784,1737382250008,-605.11,0.00020073,2]
[349698785,1737382250018,-1662.58,0.00020073,2]
[349698786,1737382250034,-500.0,0.00020073,2]
[349698787,1737382250049,-1484.9,0.00020073,2]
[349698788,1737382250059,-990.6,0.00020073,2]
[349698789,1737382250069,-1661.6,0.00020073,2]
[349698790,1737382250078,-1812.48,0.00020073,2]
[349698791,1737382250088,-606.69,0.00020073,2]
[349698792,1737382250099,-1027.14,0.00020073,2]
[349698793,1737382250109,-1110.92,0.00020073,2]
[349698794,1737382250118,-548.4,0.00020073,2]
[349698795,1737382250128,-500.0,0.00020073,2]
[349698796,1737382250138,-865.54,0.00020073,2]
[349698797,1737382250148,-922.03,0.00020073,2]
[349698798,1737382250161,-2531.85,0.00020073,2]
[349698799,1737382250171,-1424.1,0.00020073,2]
[349698800,1737382250181,-751.53,0.00020073,2]
[349698801,1737382250191,-1571.77,0.00020073,2]
[349698802,1737382250201,-705.44,0.00020073,2]
[349698803,1737382250211,-500.0,0.00020073,2]
[349698804,1737382250221,-2285.53,0.00020073,2]
[349698805,1737382250234,-1016.05,0.00020073,2]
[349698806,1737382250243,-500.0,0.00020074,2]
[349698807,1737382250253,-500.0,0.00020074,2]
[349698808,1737382250263,-500.0,0.00020074,2]
[349698809,1737382250272,-617.32,0.00020074,2]
[349698810,1737382250282,-1369.7,0.00020074,2]
[349698811,1737382250291,-500.0,0.00020074,2]
[349698812,1737382250301,-500.0,0.00020074,2]
[349698813,1737382250310,-500.0,0.00020074,2]
[349698814,1737382250319,-500.0,0.00020074,2]
[349698815,1737382250328,-500.0,0.00020074,2]
[349698816,1737382250337,-521.55937128,0.00020074,2]
[349698817,1737382250345,-604.6057076,0.00020074,2]
[349698818,1737382250354,-583.49073327,0.00020074,2]
[349698819,1737382250363,-161.82,0.00020074,2]
[349698820,1737382250373,-211.9951241,0.00020074,2]
[349698821,1737382250382,-500.0,0.00020074,2]
[349698822,1737382250391,-500.0,0.00020074,2]
[349698823,1737382250401,-500.0,0.00020074,2]
[349698824,1737382250410,-500.0,0.00020074,2]
[349698825,1737382250419,-500.0,0.00020074,2]
[349698826,1737382250428,-500.0,0.00020074,2]
[349698827,1737382250438,-500.0,0.00020074,2]
[349698828,1737382250447,-510.86324799,0.00020074,2]
[349698829,1737382250457,-500.0,0.00020074,2]
[349698830,1737382250471,-500.0,0.00020074,2]
[349698831,1737382250484,-529.54,0.00020074,2]
[349698832,1737382250493,-500.0,0.00020074,2]
[349698833,1737382250504,-500.0,0.00020074,2]
[349698834,1737382250513,-292.00506307,0.00020074,2]
[349698835,1737382250522,-500.0,0.00020074,2]
[349698836,1737382250532,-551.99,0.00020074,2]
[349698837,1737382250543,-500.0,0.00020074,2]
[349698838,1737382250552,-500.0,0.00020074,2]
[349698839,1737382250561,-500.0,0.00020074,2]
[349698840,1737382250570,-500.0,0.00020074,2]
[349698841,1737382250580,-500.0,0.00020074,2]
[349698842,1737382250589,-705.54,0.00020074,2]
[349698843,1737382250598,-679.38,0.00020074,2]
[349698844,1737382250608,-500.0,0.00020074,2]
[349698845,1737382250617,-500.0,0.00020074,2]
[349698846,1737382250627,-424.97422811,0.00020074,2]
[349698847,1737382250636,-680.92,0.00020074,2]
[349698848,1737382250646,-500.0,0.00020074,2]
[349698849,1737382250655,-830.39,0.00020074,2]
[349698850,1737382250664,-500.0,0.00020074,2]
[349698851,1737382250673,-526.23313962,0.00020074,2]
[349698852,1737382250682,-674.65,0.00020074,2]
[349698853,1737382250691,-641.68,0.00020074,2]
[349698854,1737382250700,-500.0,0.00020074,2]
[349698855,1737382250709,-699.52,0.00020074,2]
[349698856,1737382250719,-540.44,0.00020074,2]
[349698857,1737382250731,-500.0,0.00020074,2]
[349698858,1737382250741,-500.0,0.00020074,2]
[349698859,1737382250751,-710.4,0.00020074,2]
[349698860,1737382250760,-500.0,0.00020074,2]
[349698861,1737382250769,-500.0,0.00020074,2]
[349698862,1737382250778,-977.39,0.00020074,2]
[349698863,1737382250787,-664.14,0.00020074,2]
[349698864,1737382250797,-1148.11,0.00020074,2]
[349698865,1737382250806,-1115.42,0.00020074,2]
[349698866,1737382250815,-1170.37,0.00020074,2]
[349698867,1737382250824,-1184.07,0.00020074,2]
[349698868,1737382250834,-2093.44,0.00020074,2]
[349698869,1737382250843,-500.0,0.00020074,2]
[349698870,1737382250852,-500.0,0.00020074,2]
[349698871,1737382250862,-1070.79,0.00020074,2]
[349698872,1737382250871,-500.0,0.00020074,2]
[349698873,1737382250881,-500.0,0.00020074,2]
[349698874,1737382250890,-1163.49,0.00020074,2]
[349698875,1737382250902,-500.0,0.00020074,2]
[349698876,1737382250912,-500.0,0.00020074,2]
[349698877,1737382250921,-500.0,0.00020074,2]
[349698878,1737382250931,-923.43,0.00020074,2]
[349698879,1737382250940,-630.31,0.00020074,2]
[349698880,1737382250950,-500.0,0.00020074,2]
[349698881,1737382250959,-500.0,0.00020074,2]
[349698882,1737382250969,-500.0,0.00020074,2]
[349698883,1737382250978,-904.89,0.00020074,2]
[349698884,1737382250987,-500.0,0.00020074,2]
[349698885,1737382250997,-252.28,0.00020074,2]
[349698886,1737382251006,-500.0,0.00020074,2]
[349698887,1737382251015,-500.0,0.00020074,2]
[349698888,1737382251024,-547.4,0.00020074,2]
[349698889,1737382251034,-500.0,0.00020074,2]
[349698890,1737382251043,-3129.13,0.00020074,2]
[349698891,1737382251052,-500.0,0.00020074,2]
[349698892,1737382251061,-500.0,0.00020074,2]
[349698893,1737382251070,-500.0,0.00020074,2]
[349698894,1737382251079,-500.0,0.00020074,2]
[349698895,1737382251088,-500.0,0.00020074,2]
[349698896,1737382251098,-500.0,0.00020074,2]
[349698897,1737382251108,-810.07,0.00020074,2]
[349698898,1737382251117,-500.0,0.00020074,2]
[349698899,1737382251127,-655.73,0.00020074,2]
[349698900,1737382251136,-500.0,0.00020074,2]
[349698901,1737382251145,-245.47944552,0.00020074,2]
[349698902,1737382251154,-1175.2,0.00020074,2]
[349698903,1737382251163,-500.0,0.00020074,2]
[349698904,1737382251171,-604.05,0.00020074,2]
[349698905,1737382251181,-500.0,0.00020074,2]
[349698906,1737382251191,-868.25,0.00020074,2]
[349698907,1737382251200,-500.0,0.00020074,2]
[349698908,1737382251210,-151.0,0.00020074,2]
[349698909,1737382251219,-500.0,0.00020074,2]
[349698910,1737382251228,-696.42,0.00020074,2]
[349698911,1737382251237,-500.0,0.00020074,2]
[349698912,1737382251247,-1829.88,0.00020074,2]
[349698913,1737382251256,-500.0,0.00020074,2]
[349698914,1737382251266,-4031.43,0.00020074,2]
[349698915,1737382251275,-731.55,0.00020074,2]
[349698916,1737382251286,-251.62710367,0.00020074,2]
[349698917,1737382251295,-704.46,0.00020074,2]
[349698918,1737382251304,-151.0,0.00020075,2]
[349698919,1737382251314,-153.979586,0.00020075,2]
[349698920,1737382251323,-1000.0,0.00020076,2]
[349698921,1737382251332,-1000.0,0.00020076,2]
[349698922,1737382251342,-1000.0,0.00020076,2]
[349698923,1737382251351,-1000.0,0.00020076,2]
[349698924,1737382251361,-1000.0,0.00020076,2]
[349698925,1737382251370,-1000.0,0.00020076,2]
[349698926,1737382251379,-1000.0,0.00020076,2]
[349698927,1737382251388,-1000.0,0.00020076,2]
[349698928,1737382251397,-1000.0,0.00020076,2]
[349698929,1737382251407,-1000.0,0.00020076,2]
[349698930,1737382251417,-1000.0,0.00020076,2]
[349698931,1737382251426,-1000.0,0.00020076,2]
[349698932,1737382251435,-1000.0,0.00020076,2]
[349698933,1737382251445,-1000.0,0.00020076,2]
[349698934,1737382251458,-1000.0,0.00020076,2]
[349698935,1737382251467,-1000.0,0.00020076,2]
[349698936,1737382251479,-1000.0,0.00020076,2]
[349698937,1737382251490,-1000.0,0.00020076,2]
[349698938,1737382251501,-1000.0,0.00020076,2]
[349698939,1737382251511,-1000.0,0.00020076,2]
[349698940,1737382251521,-1000.0,0.00020076,2]
[349698941,1737382251532,-373.037167,0.00020076,2]
[349698942,1737382251542,-151.0,0.00020076,2]
[349698943,1737382251552,-3000.0,0.00020076,2]
[349698944,1737382251563,-234.45010399,0.00020077,2]
[349698945,1737382251572,-150.0,0.0002008,2]
[349698946,1737382251582,-339.73,0.00020084,2]
[349698947,1737382251592,-1815.72728868,0.00020102,2]
[349698948,1737382251601,-572.84,0.0002011,2]
[349698949,1737382251610,-150.0,0.00020122,2]
[349698950,1737382251620,-500.0,0.00020136,2]
[349698951,1737382251630,-8589.67,0.00020137,7]
[349698952,1737382251639,-8589.67,0.00020137,7]
[349698953,1737382251649,-150.0,0.00020143,2]
[349698954,1737382251658,-150.0,0.00020148,2]
[349698955,1737382251668,-150.0,0.00020154,4]
[349698956,1737382251677,-150.0,0.0002016,2]
[349698957,1737382251687,-17801.33767923,0.00020173,2]
[349698958,1737382251696,-229.05081253,0.00020173,2]
[349698959,1737382251706,-151.0,0.00020173,2]
[349698960,1737382251718,-151.0,0.00020173,2]
[349698961,1737382251729,-151.0,0.00020173,2]
[349698962,1737382251738,-203.82200623,0.00020186,2]
[349698963,1737382251747,-1000.0,0.00020191,2]
[349698964,1737382251756,-150.66023569,0.00020208,2]
[349698965,1737382251766,-1815.72728868,0.00020247,2]
[349698966,1737382251776,-500.0,0.00020273,2]
[349698967,1737382251786,-500.0,0.00020273,2]
[349698968,1737382251796,-500.0,0.00020273,2]
[349698969,1737382251805,-151.0,0.00020273,2]
[349698970,1737382251814,-500.0,0.00020273,2]
[349698971,1737382251824,-525.52,0.00020273,2]
[349698972,1737382251833,-641.68,0.00020273,2]
[349698973,1737382251842,-500.0,0.00020273,2]
[349698974,1737382251851,-500.0,0.00020273,2]
[349698975,1737382251862,-500.0,0.00020273,2]
[349698976,1737382251871,-699.28,0.00020273,2]
[349698977,1737382251880,-500.0,0.00020273,2]
[349698978,1737382251889,-500.0,0.00020273,2]
[349698979,1737382251898,-664.06,0.00020273,2]
[349698980,1737382251908,-500.0,0.00020273,2]
[349698981,1737382251917,-500.0,0.00020273,2]
[349698982,1737382251927,-500.0,0.00020273,2]
[349698983,1737382251937,-500.0,0.00020273,2]
[349698984,1737382251946,-500.59,0.00020273,2]
[349698985,1737382251955,-500.0,0.00020273,2]
[349698986,1737382251965,-500.0,0.00020273,2]
[349698987,1737382251974,-500.0,0.00020273,2]
[349698988,1737382251986,-500.0,0.00020273,2]
[349698989,1737382251996,-500.0,0.00020273,2]
[349698990,1737382252006,-500.0,0.00020273,2]
[349698991,1737382252015,-529.55,0.00020273,2]
[349698992,1737382252024,-739.75,0.00020273,2]
[349698993,1737382252034,-500.0,0.00020273,2]
[349698994,1737382252043,-2086.82,0.00020273,2]
[349698995,1737382252052,-500.0,0.00020273,2]
[349698996,1737382252061,-722.85,0.00020273,2]
[349698997,1737382252070,-951.9,0.00020273,2]
[349698998,1737382252079,-1197.72,0.00020273,2]
[349698999,1737382252088,-500.0,0.00020273,2]
[349699000,1737382252098,-1743.61,0.00020273,2]
[349699001,1737382252107,-913.71,0.00020273,2]
[349699002,1737382252116,-500.0,0.00020273,2]
[349699003,1737382252126,-1000.0,0.00020273,2]
[349699004,1737382252135,-638.9,0.00020273,2]
[349699005,1737382252145,-1815.06,0.00020273,2]
[349699006,1737382252154,-500.0,0.00020273,2]
[349699007,1737382252164,-552.62115834,0.00020273,2]
[349699008,1737382252173,-833.44,0.00020273,2]
[349699009,1737382252182,-581.61,0.00020273,2]
[349699010,1737382252192,-2289.84,0.00020273,2]
[349699011,1737382252202,-500.0,0.00020273,2]
[349699012,1737382252212,-827.32,0.00020273,2]
[349699013,1737382252223,-2369.06,0.00020273,2]
[349699014,1737382252235,-523.39705019,0.00020273,2]
[349699015,1737382252244,-737.57,0.00020273,2]
[349699016,1737382252254,-500.0,0.00020273,2]
[349699017,1737382252264,-757.91,0.00020273,2]
[349699018,1737382252273,-1427.64,0.00020273,2]
[349699019,1737382252282,-807.49,0.00020273,2]
[349699020,1737382252291,-1049.32,0.00020273,2]
[349699021,1737382252300,-500.0,0.00020273,2]
[349699022,1737382252309,-840.54,0.00020273,2]
[349699023,1737382252319,-881.85,0.00020273,2]
[349699024,1737382252327,-1365.96,0.00020273,2]
[349699025,1737382252336,-1008.48,0.00020273,2]
[349699026,1737382252346,-500.0,0.00020273,2]
[349699027,1737382252355,-660.95,0.00020273,2]
[349699028,1737382252365,-1272.81,0.00020273,2]
[349699029,1737382252374,-935.56,0.00020273,2]
[349699030,1737382252384,-699.74,0.00020273,2]
[349699031,1737382252393,-500.0,0.00020273,2]
[349699032,1737382252402,-859.79,0.00020273,2]
[349699033,1737382252412,-718.07,0.00020273,2]
[349699034,1737382252421,-2440.68,0.00020273,2]
[349699035,1737382252431,-517.27,0.00020273,2]
[349699036,1737382252440,-500.0,0.00020273,2]
[349699037,1737382252450,-867.38,0.00020273,2]
[349699038,1737382252459,-500.0,0.00020273,2]
[349699039,1737382252472,-2934.2,0.00020273,2]
[349699040,1737382252484,-832.79,0.00020273,2]
[349699041,1737382252493,-150.0,0.00020278,2]
[349699042,1737382252503,-604.21,0.00020284,2]
[349699043,1737382252512,-606.63,0.00020284,2]
[349699044,1737382252522,-500.0,0.00020284,2]
[349699045,1737382252532,-500.0,0.00020284,2]
[349699046,1737382252544,-500.0,0.00020284,2]
[349699047,1737382252554,-500.0,0.00020284,2]
[349699048,1737382252563,-500.0,0.00020284,2]
[349699049,1737382252572,-566.54670418,0.00020284,2]
[349699050,1737382252580,-500.0,0.00020284,2]
[349699051,1737382252589,-500.0,0.00020284,2]
[349699052,1737382252598,-500.0,0.00020284,2]
[349699053,1737382252607,-150.0,0.00020308,4]
[349699054,1737382252616,-151.0,0.00020344,2]
[349699055,1737382252625,-2048.0,0.00020344,2]
[349699056,1737382252634,-1082.0,0.00020347,2]
[349699057,1737382252644,-151.0,0.00020347,2]
[349699058,1737382252653,-665.83,0.00020347,2]
[349699059,1737382252662,-500.0,0.00020347,2]
[349699060,1737382252671,-532.17,0.00020347,2]
[349699061,1737382252680,-500.0,0.00020347,2]
[349699062,1737382252689,-1130.48,0.00020347,2]
[349699063,1737382252698,-726.19,0.00020347,2]
[349699064,1737382252707,-543.051879,0.00020347,2]
[349699065,1737382252717,-1357.98,0.00020347,2]
[349699066,1737382252726,-522.19,0.00020347,2]
[349699067,1737382252737,-500.0,0.00020347,2]
[349699068,1737382252746,-576.84,0.00020347,2]
[349699069,1737382252755,-1943.2,0.00020347,2]
[349699070,1737382252764,-511.74,0.00020347,2]
[349699071,1737382252773,-500.0,0.00020347,2]
[349699072,1737382252783,-605.11,0.00020347,2]
[349699073,1737382252792,-1662.58,0.00020347,2]
[349699074,1737382252801,-500.0,0.00020347,2]
[349699075,1737382252810,-1484.9,0.00020347,2]
[349699076,1737382252819,-990.6,0.00020347,2]
[349699077,1737382252828,-1661.6,0.00020347,2]
[349699078,1737382252837,-151.0,0.00020347,2]
[349699079,1737382252846,-1812.48,0.00020347,2]
[349699080,1737382252856,-606.69,0.00020347,2]
[349699081,1737382252865,-1027.14,0.00020347,2]
[349699082,1737382252874,-1110.92,0.00020347,2]
[349699083,1737382252883,-548.4,0.00020347,2]
[349699084,1737382252893,-500.0,0.00020347,2]
[349699085,1737382252903,-865.54,0.00020347,2]
[349699086,1737382252912,-922.03,0.00020347,2]
[349699087,1737382252921,-2531.85,0.00020347,2]
[349699088,1737382252931,-1424.1,0.00020347,2]
[349699089,1737382252940,-751.53,0.00020347,2]
[349699090,1737382252950,-1571.77,0.00020347,2]
[349699091,1737382252959,-705.44,0.00020347,2]
[349699092,1737382252975,-500.0,0.00020347,2]
[349699093,1737382252986,-2285.53,0.00020347,2]
[349699094,1737382252996,-1016.05,0.00020347,2]
[349699095,1737382253005,-500.0,0.00020348,2]
[349699096,1737382253015,-500.0,0.00020348,2]
[349699097,1737382253023,-500.0,0.00020348,2]
[349699098,1737382253031,-617.32,0.00020348,2]
[349699099,1737382253040,-1369.7,0.00020348,2]
[349699100,1737382253050,-500.0,0.00020348,2]
[349699101,1737382253059,-500.0,0.00020348,2]
[349699102,1737382253069,-500.0,0.00020348,2]
[349699103,1737382253079,-500.0,0.00020348,2]
[349699104,1737382253088,-500.0,0.00020348,2]
[349699105,1737382253098,-500.0,0.00020348,2]
[349699106,1737382253108,-500.0,0.00020348,2]
[349699107,1737382253117,-500.0,0.00020348,2]
[349699108,1737382253127,-500.0,0.00020348,2]
[349699109,1737382253136,-500.0,0.00020348,2]
[349699110,1737382253308,-500.0,0.00020348,2]
[349699111,1737382253318,-500.0,0.00020348,2]
[349699112,1737382253328,-500.0,0.00020348,2]
[349699113,1737382253337,-500.0,0.00020348,2]
[349699114,1737382253346,-529.54,0.00020348,2]
[349699115,1737382253355,-500.0,0.00020348,2]
[349699116,1737382253364,-500.0,0.00020348,2]
[349699117,1737382253373,-456.49811197,0.00020348,2]
[349699118,1737382253383,-551.99,0.00020348,2]
[349699119,1737382253392,-500.0,0.00020348,2]
[349699120,1737382253401,-500.0,0.00020348,2]
[349699121,1737382253411,-500.0,0.00020348,2]
[349699122,1737382253420,-500.0,0.00020348,2]
[349699123,1737382253429,-705.54,0.00020348,2]
[349699124,1737382253437,-679.38,0.00020348,2]
[349699125,1737382253446,-500.0,0.00020348,2]
[349699126,1737382253457,-500.0,0.00020348,2]
[349699127,1737382253467,-680.92,0.00020348,2]
[349699128,1737382253477,-614.20945131,0.00020348,2]
[349699129,1737382253489,-830.39,0.00020348,2]
[349699130,1737382253499,-500.0,0.00020348,2]
[349699131,1737382253508,-674.65,0.00020348,2]
[349699132,1737382253518,-641.68,0.00020348,2]
[349699133,1737382253527,-500.0,0.00020348,2]
[349699134,1737382253541,-699.52,0.00020348,2]
[349699135,1737382253550,-540.44,0.00020348,2]
[349699136,1737382253560,-500.0,0.00020348,2]
[349699137,1737382253570,-500.0,0.00020348,2]
[349699138,1737382253579,-710.4,0.00020348,2]
[349699139,1737382253588,-500.0,0.00020348,2]
[349699140,1737382253597,-500.0,0.00020348,2]
[349699141,1737382253606,-977.39,0.00020348,2]
[349699142,1737382253615,-664.14,0.00020348,2]
[349699143,1737382253625,-1148.11,0.00020348,2]
[349699144,1737382253634,-1115.42,0.00020348,2]
[349699145,1737382253644,-1170.37,0.00020348,2]
[349699146,1737382253653,-1184.07,0.00020348,2]
[349699147,1737382253663,-2093.44,0.00020348,2]
[349699148,1737382253672,-500.0,0.00020348,2]
[349699149,1737382253681,-500.0,0.00020348,2]
[349699150,1737382253689,-1070.79,0.00020348,2]
[349699151,1737382253698,-500.0,0.00020348,2]
[349699152,1737382253708,-500.0,0.00020348,2]
[349699153,1737382253717,-1163.49,0.00020348,2]
[349699154,1737382253727,-500.0,0.00020348,2]
[349699155,1737382253739,-500.0,0.00020348,2]
[349699156,1737382253749,-500.0,0.00020348,2]
[349699157,1737382253758,-923.43,0.00020348,2]
[349699158,1737382253767,-630.31,0.00020348,2]
[349699159,1737382253777,-500.0,0.00020348,2]
[349699160,1737382253786,-500.0,0.00020348,2]
[349699161,1737382253795,-500.0,0.00020348,2]
[349699162,1737382253804,-904.89,0.00020348,2]
[349699163,1737382253813,-500.0,0.00020348,2]
[349699164,1737382253823,-500.0,0.00020348,2]
[349699165,1737382253833,-500.0,0.00020348,2]
[349699166,1737382253843,-547.4,0.00020348,2]
[349699167,1737382253852,-500.0,0.00020348,2]
[349699168,1737382253863,-3129.13,0.00020348,2]
[349699169,1737382253873,-500.0,0.00020348,2]
[349699170,1737382253882,-500.0,0.00020348,2]
[349699171,1737382253892,-500.0,0.00020348,2]
[349699172,1737382253902,-500.0,0.00020348,2]
[349699173,1737382253911,-500.0,0.00020348,2]
[349699174,1737382253921,-500.0,0.00020348,2]
[349699175,1737382253931,-810.07,0.00020348,2]
[349699176,1737382253941,-500.0,0.00020348,2]
[349699177,1737382253950,-655.73,0.00020348,2]
[349699178,1737382253960,-500.0,0.00020348,2]
[349699179,1737382253970,-1175.2,0.00020348,2]
[349699180,1737382253982,-500.0,0.00020348,2]
[349699181,1737382253992,-604.05,0.00020348,2]
[349699182,1737382254002,-500.0,0.00020348,2]
[349699183,1737382254012,-868.25,0.00020348,2]
[349699184,1737382254021,-500.0,0.00020348,2]
[349699185,1737382254031,-500.0,0.00020348,2]
[349699186,1737382254040,-696.42,0.00020348,2]
[349699187,1737382254049,-500.0,0.00020348,2]
[349699188,1737382254058,-1829.88,0.00020348,2]
[349699189,1737382254068,-500.0,0.00020348,2]
[349699190,1737382254078,-4031.43,0.00020348,2]
[349699191,1737382254087,-731.55,0.00020348,2]
[349699192,1737382254097,-704.46,0.00020348,2]
[349699193,1737382254106,-151.0,0.00020349,2]
[349699194,1737382254116,-151.0,0.00020349,2]
[349699195,1737382254126,-151.0,0.00020349,2]
[349699196,1737382254135,-150.0,0.00020356,2]
[349699197,1737382254144,-150.0,0.00020397,2]
[349699198,1737382254154,-203.82200623,0.000204,2]
[349699199,1737382254163,-150.0,0.000204,4]
[349699200,1737382254172,-500.0,0.0002041,2]
[349699201,1737382254181,-8589.67,0.00020411,7]
[349699202,1737382254190,-8589.67,0.00020411,7]
[349699203,1737382254199,-1000.0,0.00020456,2]
[349699204,1737382254208,-150.0,0.00020462,4]
[349699205,1737382254217,-666.6,0.00020474,2]
[349699206,1737382254227,-152.0,0.00020489,3]
[349699207,1737382254239,-150.0,0.00020507,2]
[349699208,1737382254248,-150.0,0.00020509,2]
[349699209,1737382254258,-150.0,0.00020515,2]
[349699210,1737382254267,-150.0,0.0002053,2]
[349699211,1737382254276,-500.0,0.00020547,2]
[349699212,1737382254285,-500.0,0.00020547,2]
[349699213,1737382254295,-500.0,0.00020547,2]
[349699214,1737382254304,-500.0,0.00020547,2]
[349699215,1737382254313,-525.52,0.00020547,2]
[349699216,1737382254322,-641.68,0.00020547,2]
[349699217,1737382254332,-273.74747251,0.00020547,2]
[349699218,1737382254342,-500.0,0.00020547,2]
[349699219,1737382254352,-500.0,0.00020547,2]
[349699220,1737382254361,-699.28,0.00020547,2]
[349699221,1737382254371,-500.0,0.00020547,2]
[349699222,1737382254381,-500.0,0.00020547,2]
[349699223,1737382254391,-664.06,0.00020547,2]
[349699224,1737382254400,-559.91395837,0.00020547,2]
[349699225,1737382254409,-500.0,0.00020547,2]
[349699226,1737382254417,-500.0,0.00020547,2]
[349699227,1737382254427,-500.0,0.00020547,2]
[349699228,1737382254436,-500.59,0.00020547,2]
[349699229,1737382254445,-500.0,0.00020547,2]
[349699230,1737382254455,-407.45,0.00020547,2]
[349699231,1737382254467,-500.0,0.00020547,2]
[349699232,1737382254476,-500.0,0.00020547,2]
[349699233,1737382254488,-500.0,0.00020547,2]
[349699234,1737382254499,-500.0,0.00020547,2]
[349699235,1737382254509,-529.55,0.00020547,2]
[349699236,1737382254519,-739.75,0.00020547,2]
[349699237,1737382254528,-500.0,0.00020547,2]
[349699238,1737382254538,-2086.82,0.00020547,2]
[349699239,1737382254549,-500.0,0.00020547,2]
[349699240,1737382254559,-151.0,0.00020547,2]
[349699241,1737382254570,-722.85,0.00020547,2]
[349699242,1737382254579,-951.9,0.00020547,2]
[349699243,1737382254588,-1197.72,0.00020547,2]
[349699244,1737382254597,-500.0,0.00020547,2]
[349699245,1737382254606,-1743.61,0.00020547,2]
[349699246,1737382254615,-913.71,0.00020547,2]
[349699247,1737382254624,-500.0,0.00020547,2]
[349699248,1737382254633,-1000.0,0.00020547,2]
[349699249,1737382254642,-638.9,0.00020547,2]
[349699250,1737382254652,-1815.06,0.00020547,2]
[349699251,1737382254661,-500.0,0.00020547,2]
[349699252,1737382254670,-833.44,0.00020547,2]
[349699253,1737382254679,-581.61,0.00020547,2]
[349699254,1737382254688,-2289.84,0.00020547,2]
[349699255,1737382254698,-500.0,0.00020547,2]
[349699256,1737382254707,-827.32,0.00020547,2]
[349699257,1737382254716,-2369.06,0.00020547,2]
[349699258,1737382254725,-737.57,0.00020547,2]
[349699259,1737382254737,-500.0,0.00020547,2]
[349699260,1737382254747,-151.0,0.00020547,2]
[349699261,1737382254755,-757.91,0.00020547,2]
[349699262,1737382254763,-1427.64,0.00020547,2]
[349699263,1737382254773,-807.49,0.00020547,2]
[349699264,1737382254782,-1049.32,0.00020547,2]
[349699265,1737382254791,-500.0,0.00020547,2]
[349699266,1737382254801,-840.54,0.00020547,2]
[349699267,1737382254810,-881.85,0.00020547,2]
[349699268,1737382254819,-1365.96,0.00020547,2]
[349699269,1737382254829,-1008.48,0.00020547,2]
[349699270,1737382254838,-500.0,0.00020547,2]
[349699271,1737382254847,-660.95,0.00020547,2]
[349699272,1737382254858,-1272.81,0.00020547,2]
[349699273,1737382254868,-935.56,0.00020547,2]
[349699274,1737382254877,-699.74,0.00020547,2]
[349699275,1737382254887,-151.0,0.00020547,2]
[349699276,1737382254897,-500.0,0.00020547,2]
[349699277,1737382254906,-859.79,0.00020547,2]
[349699278,1737382254914,-718.07,0.00020547,2]
[349699279,1737382254923,-2440.68,0.00020547,2]
[349699280,1737382254933,-517.27,0.00020547,2]
[349699281,1737382254943,-500.0,0.00020547,2]
[349699282,1737382254952,-867.38,0.00020547,2]